Workbook

Sheet НАЧАЛО
B1: Об этом шаблоне
B2: Составляйте ежемесячный или годовой бюджет с помощью этого шаблона.
B3: Вводите Выручка и Расходы в соответствующих таблицах, чтобы рассчитать дефицит или избыток денежных средств за месяц или год.
B4: Спарклайны в таблицах обновляются автоматически.
B5: Примечание.
B6: В столбце A листа ЛИЧНЫЙ БЮДЖЕТ содержатся дополнительные инструкции. Их текст намерено скрыт. Чтобы удалить этот текст, выделите столбец A и нажмите клавишу УДАЛЯТЬ. Чтобы отобразить текст, выделите столбец A и измените цвет шрифта.
B7: Чтобы получить дополнительные сведения о таблице, щелкните в ней ячейку, затем нажмите клавиши SHIFT+F10, выберите пункт «Таблица», а затем — «Замещающий текст».

Sheet ЛИЧНЫЙ БЮДЖЕТ
A1: Создайте на этом листе простой личный бюджет. В ячейках этого столбца представлены полезные инструкции по использованию этого листа. Нажмите СТРЕЛКУ ВНИЗ, чтобы начать.
A2: Ячейка справа содержит заголовок листа. В ячейке Q2 введите год. Дальнейшие инструкции указаны в ячейке A4. | B2: ЛИЧНЫЙ БЮДЖЕТ | Q2: =YEAR(TODAY()) -> 2019
A4: Ячейки диапазона C4:P4 содержат подписи. | C4: ВЫРУЧКА | D4: ЯНВ | E4: ФЕВ | F4: МАР | G4: АПР | H4: МАЙ | I4: ИЮН | J4: ИЮЛ | K4: АВГ | L4: СЕН | M4: ОКТ | N4: НОЯ | O4: ДЕК | P4: ГОД
A5: Введите сведения в таблице «Доходы», начиная с ячейки C5. Дальнейшие инструкции указаны в ячейке A11. | C5: ДОХОДЫ | D5: Январь | E5: Февраль | F5: Март | G5: Апрель | H5: Май | I5: Июнь | J5: Июль | K5: Август | L5: Сентябрь | M5: Октябрь | N5: Ноябрь | O5: Декабрь | P5: Год | Q5: Спарклайн
C6: Зарплата | D6: 2,600.00 ₽ | E6: 2,600.00 ₽ | F6: 2,600.00 ₽ | P6: =SUM(Доходы[[#This Row],[Январь]:[Декабрь]]) -> 7,800.00 ₽
C7: Проценты и дивиденды | D7: 649.00 ₽ | E7: 313.00 ₽ | F7: 664.00 ₽ | P7: =SUM(Доходы[[#This Row],[Январь]:[Декабрь]]) -> 1,626.00 ₽
C8: Прочее | D8: 474.00 ₽ | E8: 643.00 ₽ | F8: 380.00 ₽ | P8: =SUM(Доходы[[#This Row],[Январь]:[Декабрь]]) -> 1,497.00 ₽
C9: Итог | D9: =SUBTOTAL(109,Доходы[Январь]) -> 3,723.00 ₽ | E9: =SUBTOTAL(109,Доходы[Февраль]) -> 3,556.00 ₽ | F9: =SUBTOTAL(109,Доходы[Март]) -> 3,644.00 ₽ | G9: =SUBTOTAL(109,Доходы[Апрель]) -> 0.00 ₽ | H9: =SUBTOTAL(109,Доходы[Май]) -> 0.00 ₽ | I9: =SUBTOTAL(109,Доходы[Июнь]) -> 0.00 ₽ | J9: =SUBTOTAL(109,Доходы[Июль]) -> 0.00 ₽ | K9: =SUBTOTAL(109,Доходы[Август]) -> 0.00 ₽ | L9: =SUBTOTAL(109,Доходы[Сентябрь]) -> 0.00 ₽ | M9: =SUBTOTAL(109,Доходы[Октябрь]) -> 0.00 ₽ | N9: =SUBTOTAL(109,Доходы[Ноябрь]) -> 0.00 ₽ | O9: =SUBTOTAL(109,Доходы[Декабрь]) -> 0.00 ₽ | P9: =SUBTOTAL(109,Доходы[Год]) -> 10,923.00 ₽
A11: Ячейки диапазона C11:P11 содержат подписи. | C11: РАСХОДЫ | D11: ЯНВ | E11: ФЕВ | F11: МАР | G11: АПР | H11: МАЙ | I11: ИЮН | J11: ИЮЛ | K11: АВГ | L11: СЕН | M11: ОКТ | N11: НОЯ | O11: ДЕК | P11: ГОД
A12: Введите сведения в таблице «Домашние расходы», начиная с ячейки C12. Дальнейшие инструкции указаны в ячейке A20. | C12: ДОМАШНИЕ РАСХОДЫ | D12: Январь | E12: Февраль | F12: Март | G12: Апрель | H12: Май | I12: Июнь | J12: Июль | K12: Август | L12: Сентябрь | M12: Октябрь | N12: Ноябрь | O12: Декабрь | P12: Год | Q12: Спарклайн
C13: Ипотека | D13: 750.00 ₽ | E13: 750.00 ₽ | F13: 750.00 ₽ | P13: =SUM(Домашние_расходы[[#This Row],[Январь]:[Декабрь]]) -> 2,250.00 ₽
C14: Страхование | P14: =SUM(Домашние_расходы[[#This Row],[Январь]:[Декабрь]]) -> 0.00 ₽
C15: Ремонт | F15: 75.00 ₽ | P15: =SUM(Домашние_расходы[[#This Row],[Январь]:[Декабрь]]) -> 75.00 ₽
C16: Услуги | D16: 35.00 ₽ | E16: 35.00 ₽ | F16: 35.00 ₽ | P16: =SUM(Домашние_расходы[[#This Row],[Январь]:[Декабрь]]) -> 105.00 ₽
C17: Коммунальные услуги | D17: 165.00 ₽ | E17: 165.00 ₽ | F17: 165.00 ₽ | P17: =SUM(Домашние_расходы[[#This Row],[Январь]:[Декабрь]]) -> 495.00 ₽
C18: Итог | D18: =SUBTOTAL(109,Домашние_расходы[Январь]) -> 950.00 ₽ | E18: =SUBTOTAL(109,Домашние_расходы[Февраль]) -> 950.00 ₽ | F18: =SUBTOTAL(109,Домашние_расходы[Март]) -> 1,025.00 ₽ | G18: =SUBTOTAL(109,Домашние_расходы[Апрель]) -> 0.00 ₽ | H18: =SUBTOTAL(109,Домашние_расходы[Май]) -> 0.00 ₽ | I18: =SUBTOTAL(109,Домашние_расходы[Июнь]) -> 0.00 ₽ | J18: =SUBTOTAL(109,Домашние_расходы[Июль]) -> 0.00 ₽ | K18: =SUBTOTAL(109,Домашние_расходы[Август]) -> 0.00 ₽ | L18: =SUBTOTAL(109,Домашние_расходы[Сентябрь]) -> 0.00 ₽ | M18: =SUBTOTAL(109,Домашние_расходы[Октябрь]) -> 0.00 ₽ | N18: =SUBTOTAL(109,Домашние_расходы[Ноябрь]) -> 0.00 ₽ | O18: =SUBTOTAL(109,Домашние_расходы[Декабрь]) -> 0.00 ₽ | P18: =SUBTOTAL(109,Домашние_расходы[Год]) -> 2,925.00 ₽
A20: Введите сведения в таблице «Ежедневные расходы», начиная с ячейки C20. Дальнейшие инструкции указаны в ячейке A29. | C20: ПОВСЕДНЕВНЫЕ РАСХОДЫ | D20: Январь | E20: Февраль | F20: Март | G20: Апрель | H20: Май | I20: Июнь | J20: Июль | K20: Август | L20: Сентябрь | M20: Октябрь | N20: Ноябрь | O20: Декабрь | P20: Год | Q20: Спарклайн
C21: Продовольственные товары | D21: 191.00 ₽ | E21: 152.00 ₽ | F21: 145.00 ₽ | P21: =SUM(Ежедневные[[#This Row],[Январь]:[Декабрь]]) -> 488.00 ₽
C22: Уход за ребенком | D22: 200.00 ₽ | E22: 200.00 ₽ | F22: 200.00 ₽ | P22: =SUM(Ежедневные[[#This Row],[Январь]:[Декабрь]]) -> 600.00 ₽
C23: Химчистка | D23: 20.00 ₽ | F23: 20.00 ₽ | P23: =SUM(Ежедневные[[#This Row],[Январь]:[Декабрь]]) -> 40.00 ₽
C24: Рестораны | D24: 55.00 ₽ | F24: 56.00 ₽ | P24: =SUM(Ежедневные[[#This Row],[Январь]:[Декабрь]]) -> 111.00 ₽
C25: Уборка дома | D25: 25.00 ₽ | E25: 17.00 ₽ | F25: 7.00 ₽ | P25: =SUM(Ежедневные[[#This Row],[Январь]:[Декабрь]]) -> 49.00 ₽
C26: Выгул собак | D26: 10.00 ₽ | E26: 5.00 ₽ | F26: 7.00 ₽ | P26: =SUM(Ежедневные[[#This Row],[Январь]:[Декабрь]]) -> 22.00 ₽
C27: Итог | D27: =SUBTOTAL(109,Ежедневные[Январь]) -> 501.00 ₽ | E27: =SUBTOTAL(109,Ежедневные[Февраль]) -> 374.00 ₽ | F27: =SUBTOTAL(109,Ежедневные[Март]) -> 435.00 ₽ | G27: =SUBTOTAL(109,Ежедневные[Апрель]) -> 0.00 ₽ | H27: =SUBTOTAL(109,Ежедневные[Май]) -> 0.00 ₽ | I27: =SUBTOTAL(109,Ежедневные[Июнь]) -> 0.00 ₽ | J27: =SUBTOTAL(109,Ежедневные[Июль]) -> 0.00 ₽ | K27: =SUBTOTAL(109,Ежедневные[Август]) -> 0.00 ₽ | L27: =SUBTOTAL(109,Ежедневные[Сентябрь]) -> 0.00 ₽ | M27: =SUBTOTAL(109,Ежедневные[Октябрь]) -> 0.00 ₽ | N27: =SUBTOTAL(109,Ежедневные[Ноябрь]) -> 0.00 ₽ | O27: =SUBTOTAL(109,Ежедневные[Декабрь]) -> 0.00 ₽ | P27: =SUBTOTAL(109,Ежедневные[Год]) -> 1,310.00 ₽
A29: Введите сведения в таблице «Транспорт», начиная с ячейки C29. Дальнейшие инструкции указаны в ячейке A38. | C29: ТРАНСПОРТ | D29: Январь | E29: Февраль | F29: Март | G29: Апрель | H29: Май | I29: Июнь | J29: Июль | K29: Август | L29: Сентябрь | M29: Октябрь | N29: Ноябрь | O29: Декабрь | P29: Год | Q29: Спарклайн
C30: Топливо | D30: 195.00 ₽ | E30: 125.00 ₽ | F30: 171.00 ₽ | P30: =SUM(Транспорт[[#This Row],[Январь]:[Декабрь]]) -> 491.00 ₽
C31: Страхование | D31: 165.00 ₽ | E31: 165.00 ₽ | F31: 165.00 ₽ | P31: =SUM(Транспорт[[#This Row],[Январь]:[Декабрь]]) -> 495.00 ₽
C32: Ремонт | P32: =SUM(Транспорт[[#This Row],[Январь]:[Декабрь]]) -> 0.00 ₽
C33: Автомойка | D33: 10.00 ₽ | P33: =SUM(Транспорт[[#This Row],[Январь]:[Декабрь]]) -> 10.00 ₽
C34: Стоянка | D34: 10.00 ₽ | E34: 40.00 ₽ | F34: 20.00 ₽ | P34: =SUM(Транспорт[[#This Row],[Январь]:[Декабрь]]) -> 70.00 ₽
C35: Общественный транспорт | D35: 20.00 ₽ | E35: 40.00 ₽ | F35: 30.00 ₽ | P35: =SUM(Транспорт[[#This Row],[Январь]:[Декабрь]]) -> 90.00 ₽
C36: Итог | D36: =SUBTOTAL(109,Транспорт[Январь]) -> 400.00 ₽ | E36: =SUBTOTAL(109,Транспорт[Февраль]) -> 370.00 ₽ | F36: =SUBTOTAL(109,Транспорт[Март]) -> 386.00 ₽ | G36: =SUBTOTAL(109,Транспорт[Апрель]) -> 0.00 ₽ | H36: =SUBTOTAL(109,Транспорт[Май]) -> 0.00 ₽ | I36: =SUBTOTAL(109,Транспорт[Июнь]) -> 0.00 ₽ | J36: =SUBTOTAL(109,Транспорт[Июль]) -> 0.00 ₽ | K36: =SUBTOTAL(109,Транспорт[Август]) -> 0.00 ₽ | L36: =SUBTOTAL(109,Транспорт[Сентябрь]) -> 0.00 ₽ | M36: =SUBTOTAL(109,Транспорт[Октябрь]) -> 0.00 ₽ | N36: =SUBTOTAL(109,Транспорт[Ноябрь]) -> 0.00 ₽ | O36: =SUBTOTAL(109,Транспорт[Декабрь]) -> 0.00 ₽ | P36: =SUBTOTAL(109,Транспорт[Год]) -> 1,156.00 ₽
A38: Введите сведения в таблице «Развлечения», начиная с ячейки C38. Дальнейшие инструкции указаны в ячейке A45. | C38: РАЗВЛЕЧЕНИЯ | D38: Январь | E38: Февраль | F38: Март | G38: Апрель | H38: Май | I38: Июнь | J38: Июль | K38: Август | L38: Сентябрь | M38: Октябрь | N38: Ноябрь | O38: Декабрь | P38: Год | Q38: Спарклайн
C39: Кабельное ТВ | D39: 85.00 ₽ | E39: 85.00 ₽ | F39: 85.00 ₽ | P39: =SUM(Развлечения[[#This Row],[Январь]:[Декабрь]]) -> 255.00 ₽
C40: Прокат видео/DVD | D40: 7.00 ₽ | E40: 8.00 ₽ | F40: 9.00 ₽ | P40: =SUM(Развлечения[[#This Row],[Январь]:[Декабрь]]) -> 24.00 ₽
C41: Кино/театры | D41: 9.00 ₽ | E41: 5.00 ₽ | F41: 9.00 ₽ | P41: =SUM(Развлечения[[#This Row],[Январь]:[Декабрь]]) -> 23.00 ₽
C42: Концерты/клубы | D42: 5.00 ₽ | E42: 5.00 ₽ | F42: 7.00 ₽ | P42: =SUM(Развлечения[[#This Row],[Январь]:[Декабрь]]) -> 17.00 ₽
C43: Итог | D43: =SUBTOTAL(109,Развлечения[Январь]) -> 106.00 ₽ | E43: =SUBTOTAL(109,Развлечения[Февраль]) -> 103.00 ₽ | F43: =SUBTOTAL(109,Развлечения[Март]) -> 110.00 ₽ | G43: =SUBTOTAL(109,Развлечения[Апрель]) -> 0.00 ₽ | H43: =SUBTOTAL(109,Развлечения[Май]) -> 0.00 ₽ | I43: =SUBTOTAL(109,Развлечения[Июнь]) -> 0.00 ₽ | J43: =SUBTOTAL(109,Развлечения[Июль]) -> 0.00 ₽ | K43: =SUBTOTAL(109,Развлечения[Август]) -> 0.00 ₽ | L43: =SUBTOTAL(109,Развлечения[Сентябрь]) -> 0.00 ₽ | M43: =SUBTOTAL(109,Развлечения[Октябрь]) -> 0.00 ₽ | N43: =SUBTOTAL(109,Развлечения[Ноябрь]) -> 0.00 ₽ | O43: =SUBTOTAL(109,Развлечения[Декабрь]) -> 0.00 ₽ | P43: =SUBTOTAL(109,Развлечения[Год]) -> 319.00 ₽
A45: Введите сведения в таблице «Здоровье», начиная с ячейки C45 Дальнейшие инструкции указаны в ячейке A55. | C45: ЗДОРОВЬЕ | D45: Январь | E45: Февраль | F45: Март | G45: Апрель | H45: Май | I45: Июнь | J45: Июль | K45: Август | L45: Сентябрь | M45: Октябрь | N45: Ноябрь | O45: Декабрь | P45: Год | Q45: Спарклайн
C46: Взносы в оздоровительный клуб | D46: 50.00 ₽ | E46: 50.00 ₽ | F46: 50.00 ₽ | P46: =SUM(Здоровье[[#This Row],[Январь]:[Декабрь]]) -> 150.00 ₽
C47: Страхование | D47: 225.00 ₽ | E47: 225.00 ₽ | F47: 225.00 ₽ | P47: =SUM(Здоровье[[#This Row],[Январь]:[Декабрь]]) -> 675.00 ₽
C48: Лекарства по рецепту | D48: 100.00 ₽ | E48: 100.00 ₽ | F48: 100.00 ₽ | P48: =SUM(Здоровье[[#This Row],[Январь]:[Декабрь]]) -> 300.00 ₽
C49: Лекарства без рецепта | D49: 6.00 ₽ | E49: 2.00 ₽ | F49: 9.00 ₽ | P49: =SUM(Здоровье[[#This Row],[Январь]:[Декабрь]]) -> 17.00 ₽
C50: Совместная оплата/подлежащее оплате | D50: 20.00 ₽ | F50: 41.00 ₽ | P50: =SUM(Здоровье[[#This Row],[Январь]:[Декабрь]]) -> 61.00 ₽
C51: Ветеринары/медикаменты для питомцев | D51: 4.00 ₽ | F51: 25.00 ₽ | P51: =SUM(Здоровье[[#This Row],[Январь]:[Декабрь]]) -> 29.00 ₽
C52: Страхование жизни | D52: 55.00 ₽ | E52: 55.00 ₽ | F52: 55.00 ₽ | P52: =SUM(Здоровье[[#This Row],[Январь]:[Декабрь]]) -> 165.00 ₽
C53: Итог | D53: =SUBTOTAL(109,Здоровье[Январь]) -> 460.00 ₽ | E53: =SUBTOTAL(109,Здоровье[Февраль]) -> 432.00 ₽ | F53: =SUBTOTAL(109,Здоровье[Март]) -> 505.00 ₽ | G53: =SUBTOTAL(109,Здоровье[Апрель]) -> 0.00 ₽ | H53: =SUBTOTAL(109,Здоровье[Май]) -> 0.00 ₽ | I53: =SUBTOTAL(109,Здоровье[Июнь]) -> 0.00 ₽ | J53: =SUBTOTAL(109,Здоровье[Июль]) -> 0.00 ₽ | K53: =SUBTOTAL(109,Здоровье[Август]) -> 0.00 ₽ | L53: =SUBTOTAL(109,Здоровье[Сентябрь]) -> 0.00 ₽ | M53: =SUBTOTAL(109,Здоровье[Октябрь]) -> 0.00 ₽ | N53: =SUBTOTAL(109,Здоровье[Ноябрь]) -> 0.00 ₽ | O53: =SUBTOTAL(109,Здоровье[Декабрь]) -> 0.00 ₽ | P53: =SUBTOTAL(109,Здоровье[Год]) -> 1,397.00 ₽
A55: Введите сведения в таблице «Отпуск», начиная с ячейки C55. Дальнейшие инструкции указаны в ячейке A64. | C55: ОТПУСК | D55: Январь | E55: Февраль | F55: Март | G55: Апрель | H55: Май | I55: Июнь | J55: Июль | K55: Август | L55: Сентябрь | M55: Октябрь | N55: Ноябрь | O55: Декабрь | P55: Год | Q55: Спарклайн
C56: Авиабилеты | E56: 485.00 ₽ | P56: =SUM(Отпуск[[#This Row],[Январь]:[Декабрь]]) -> 485.00 ₽
C57: Проживание | E57: 245.00 ₽ | P57: =SUM(Отпуск[[#This Row],[Январь]:[Декабрь]]) -> 245.00 ₽
C58: Питание | E58: 95.00 ₽ | P58: =SUM(Отпуск[[#This Row],[Январь]:[Декабрь]]) -> 95.00 ₽
C59: Сувениры | P59: =SUM(Отпуск[[#This Row],[Январь]:[Декабрь]]) -> 0.00 ₽
C60: Уход за питомцами | P60: =SUM(Отпуск[[#This Row],[Январь]:[Декабрь]]) -> 0.00 ₽
C61: Прокат автомобиля | E61: 85.00 ₽ | P61: =SUM(Отпуск[[#This Row],[Январь]:[Декабрь]]) -> 85.00 ₽
C62: Итог | D62: =SUBTOTAL(109,Отпуск[Январь]) -> 0.00 ₽ | E62: =SUBTOTAL(109,Отпуск[Февраль]) -> 910.00 ₽ | F62: =SUBTOTAL(109,Отпуск[Март]) -> 0.00 ₽ | G62: =SUBTOTAL(109,Отпуск[Апрель]) -> 0.00 ₽ | H62: =SUBTOTAL(109,Отпуск[Май]) -> 0.00 ₽ | I62: =SUBTOTAL(109,Отпуск[Июнь]) -> 0.00 ₽ | J62: =SUBTOTAL(109,Отпуск[Июль]) -> 0.00 ₽ | K62: =SUBTOTAL(109,Отпуск[Август]) -> 0.00 ₽ | L62: =SUBTOTAL(109,Отпуск[Сентябрь]) -> 0.00 ₽ | M62: =SUBTOTAL(109,Отпуск[Октябрь]) -> 0.00 ₽ | N62: =SUBTOTAL(109,Отпуск[Ноябрь]) -> 0.00 ₽ | O62: =SUBTOTAL(109,Отпуск[Декабрь]) -> 0.00 ₽ | P62: =SUBTOTAL(109,Отпуск[Год]) -> 910.00 ₽
A64: Введите сведения в таблице «Отдых», начиная с ячейки C64. Дальнейшие инструкции указаны в ячейке A71. | C64: ОТДЫХ | D64: Январь | E64: Февраль | F64: Март | G64: Апрель | H64: Май | I64: Июнь | J64: Июль | K64: Август | L64: Сентябрь | M64: Октябрь | N64: Ноябрь | O64: Декабрь | P64: Год | Q64: Спарклайн
C65: Абонемент в тренажерный зал | P65: =SUM(Отдых[[#This Row],[Январь]:[Декабрь]]) -> 0.00 ₽
C66: Спортивное снаряжение | P66: =SUM(Отдых[[#This Row],[Январь]:[Декабрь]]) -> 0.00 ₽
C67: Командные взносы | P67: =SUM(Отдых[[#This Row],[Январь]:[Декабрь]]) -> 0.00 ₽
C68: Игрушки/снаряжение для ребенка | D68: 39.00 ₽ | E68: 33.00 ₽ | F68: 40.00 ₽ | P68: =SUM(Отдых[[#This Row],[Январь]:[Декабрь]]) -> 112.00 ₽
C69: Итог | D69: =SUBTOTAL(109,Отдых[Январь]) -> 39.00 ₽ | E69: =SUBTOTAL(109,Отдых[Февраль]) -> 33.00 ₽ | F69: =SUBTOTAL(109,Отдых[Март]) -> 40.00 ₽ | G69: =SUBTOTAL(109,Отдых[Апрель]) -> 0.00 ₽ | H69: =SUBTOTAL(109,Отдых[Май]) -> 0.00 ₽ | I69: =SUBTOTAL(109,Отдых[Июнь]) -> 0.00 ₽ | J69: =SUBTOTAL(109,Отдых[Июль]) -> 0.00 ₽ | K69: =SUBTOTAL(109,Отдых[Август]) -> 0.00 ₽ | L69: =SUBTOTAL(109,Отдых[Сентябрь]) -> 0.00 ₽ | M69: =SUBTOTAL(109,Отдых[Октябрь]) -> 0.00 ₽ | N69: =SUBTOTAL(109,Отдых[Ноябрь]) -> 0.00 ₽ | O69: =SUBTOTAL(109,Отдых[Декабрь]) -> 0.00 ₽ | P69: =SUBTOTAL(109,Отдых[Год]) -> 112.00 ₽
A71: Введите сведения в таблицах «Платежи» и «Подписки», начиная с ячейки С71. Дальнейшие инструкции указаны в ячейке A81. | C71: ПЛАТЕЖИ/ПОДПИСКИ | D71: Январь | E71: Февраль | F71: Март | G71: Апрель | H71: Май | I71: Июнь | J71: Июль | K71: Август | L71: Сентябрь | M71: Октябрь | N71: Ноябрь | O71: Декабрь | P71: Год | Q71: Спарклайн
C72: Журналы | P72: =SUM(Платежи_и_подписки[[#This Row],[Январь]:[Декабрь]]) -> 0.00 ₽
C73: Газеты | P73: =SUM(Платежи_и_подписки[[#This Row],[Январь]:[Декабрь]]) -> 0.00 ₽
C74: Подключение к Интернету | P74: =SUM(Платежи_и_подписки[[#This Row],[Январь]:[Декабрь]]) -> 0.00 ₽
C75: Общественное радио | P75: =SUM(Платежи_и_подписки[[#This Row],[Январь]:[Декабрь]]) -> 0.00 ₽
C76: Общественное телевидение | P76: =SUM(Платежи_и_подписки[[#This Row],[Январь]:[Декабрь]]) -> 0.00 ₽
C77: Религиозные организации | D77: 29.00 ₽ | E77: 18.00 ₽ | F77: 17.00 ₽ | P77: =SUM(Платежи_и_подписки[[#This Row],[Январь]:[Декабрь]]) -> 64.00 ₽
C78: Благотворительные взносы | P78: =SUM(Платежи_и_подписки[[#This Row],[Январь]:[Декабрь]]) -> 0.00 ₽
C79: Итог | D79: =SUBTOTAL(109,Платежи_и_подписки[Январь]) -> 29.00 ₽ | E79: =SUBTOTAL(109,Платежи_и_подписки[Февраль]) -> 18.00 ₽ | F79: =SUBTOTAL(109,Платежи_и_подписки[Март]) -> 17.00 ₽ | G79: =SUBTOTAL(109,Платежи_и_подписки[Апрель]) -> 0.00 ₽ | H79: =SUBTOTAL(109,Платежи_и_подписки[Май]) -> 0.00 ₽ | I79: =SUBTOTAL(109,Платежи_и_подписки[Июнь]) -> 0.00 ₽ | J79: =SUBTOTAL(109,Платежи_и_подписки[Июль]) -> 0.00 ₽ | K79: =SUBTOTAL(109,Платежи_и_подписки[Август]) -> 0.00 ₽ | L79: =SUBTOTAL(109,Платежи_и_подписки[Сентябрь]) -> 0.00 ₽ | M79: =SUBTOTAL(109,Платежи_и_подписки[Октябрь]) -> 0.00 ₽ | N79: =SUBTOTAL(109,Платежи_и_подписки[Ноябрь]) -> 0.00 ₽ | O79: =SUBTOTAL(109,Платежи_и_подписки[Декабрь]) -> 0.00 ₽ | P79: =SUBTOTAL(109,Платежи_и_подписки[Год]) -> 64.00 ₽
A81: Введите сведения в таблице «Личные расходы», начиная с ячейки C81. Дальнейшие инструкции указаны в ячейке A89. | C81: ЛИЧНЫЕ РАСХОДЫ | D81: Январь | E81: Февраль | F81: Март | G81: Апрель | H81: Май | I81: Июнь | J81: Июль | K81: Август | L81: Сентябрь | M81: Октябрь | N81: Ноябрь | O81: Декабрь | P81: Год | Q81: Спарклайн
C82: Одежда | F82: 29.00 ₽ | P82: =SUM(Личные_расходы[[#This Row],[Январь]:[Декабрь]]) -> 29.00 ₽
C83: Подарки | E83: 35.00 ₽ | P83: =SUM(Личные_расходы[[#This Row],[Январь]:[Декабрь]]) -> 35.00 ₽
C84: Салон красоты/парикмахерская | D84: 25.00 ₽ | E84: 25.00 ₽ | F84: 25.00 ₽ | P84: =SUM(Личные_расходы[[#This Row],[Январь]:[Декабрь]]) -> 75.00 ₽
C85: Книги | P85: =SUM(Личные_расходы[[#This Row],[Январь]:[Декабрь]]) -> 0.00 ₽
C86: Музыка (компакт-диски и т. д.) | P86: =SUM(Личные_расходы[[#This Row],[Январь]:[Декабрь]]) -> 0.00 ₽
C87: Итог | D87: =SUBTOTAL(109,Личные_расходы[Январь]) -> 25.00 ₽ | E87: =SUBTOTAL(109,Личные_расходы[Февраль]) -> 60.00 ₽ | F87: =SUBTOTAL(109,Личные_расходы[Март]) -> 54.00 ₽ | G87: =SUBTOTAL(109,Личные_расходы[Апрель]) -> 0.00 ₽ | H87: =SUBTOTAL(109,Личные_расходы[Май]) -> 0.00 ₽ | I87: =SUBTOTAL(109,Личные_расходы[Июнь]) -> 0.00 ₽ | J87: =SUBTOTAL(109,Личные_расходы[Июль]) -> 0.00 ₽ | K87: =SUBTOTAL(109,Личные_расходы[Август]) -> 0.00 ₽ | L87: =SUBTOTAL(109,Личные_расходы[Сентябрь]) -> 0.00 ₽ | M87: =SUBTOTAL(109,Личные_расходы[Октябрь]) -> 0.00 ₽ | N87: =SUBTOTAL(109,Личные_расходы[Ноябрь]) -> 0.00 ₽ | O87: =SUBTOTAL(109,Личные_расходы[Декабрь]) -> 0.00 ₽ | P87: =SUBTOTAL(109,Личные_расходы[Год]) -> 139.00 ₽
A89: Введите сведения в таблице «Финансовые обязательства», начиная с ячейки C89. Дальнейшие инструкции указаны в ячейке A97. | C89: ФИНАНСОВЫЕ ОБЯЗАТЕЛЬСТВА | D89: Январь | E89: Февраль | F89: Март | G89: Апрель | H89: Май | I89: Июнь | J89: Июль | K89: Август | L89: Сентябрь | M89: Октябрь | N89: Ноябрь | O89: Декабрь | P89: Год | Q89: Спарклайн
C90: Долгосрочные сбережения | D90: 25.00 ₽ | E90: 25.00 ₽ | F90: 25.00 ₽ | P90: =SUM(Финансовые_обязательства[[#This Row],[Январь]:[Декабрь]]) -> 75.00 ₽
C91: Пенсионный фонд | D91: 45.00 ₽ | E91: 45.00 ₽ | F91: 45.00 ₽ | P91: =SUM(Финансовые_обязательства[[#This Row],[Январь]:[Декабрь]]) -> 135.00 ₽
C92: Платежи по кредитной карте | D92: 75.00 ₽ | E92: 75.00 ₽ | F92: 75.00 ₽ | P92: =SUM(Финансовые_обязательства[[#This Row],[Январь]:[Декабрь]]) -> 225.00 ₽
C93: Налог на прибыль (дополнительный) | P93: =SUM(Финансовые_обязательства[[#This Row],[Январь]:[Декабрь]]) -> 0.00 ₽
C94: Другие обязательства | D94: 32.00 ₽ | E94: 34.00 ₽ | F94: 1.00 ₽ | P94: =SUM(Финансовые_обязательства[[#This Row],[Январь]:[Декабрь]]) -> 67.00 ₽
C95: Итог | D95: =SUBTOTAL(109,Финансовые_обязательства[Январь]) -> 177.00 ₽ | E95: =SUBTOTAL(109,Финансовые_обязательства[Февраль]) -> 179.00 ₽ | F95: =SUBTOTAL(109,Финансовые_обязательства[Март]) -> 146.00 ₽ | G95: =SUBTOTAL(109,Финансовые_обязательства[Апрель]) -> 0.00 ₽ | H95: =SUBTOTAL(109,Финансовые_обязательства[Май]) -> 0.00 ₽ | I95: =SUBTOTAL(109,Финансовые_обязательства[Июнь]) -> 0.00 ₽ | J95: =SUBTOTAL(109,Финансовые_обязательства[Июль]) -> 0.00 ₽ | K95: =SUBTOTAL(109,Финансовые_обязательства[Август]) -> 0.00 ₽ | L95: =SUBTOTAL(109,Финансовые_обязательства[Сентябрь]) -> 0.00 ₽ | M95: =SUBTOTAL(109,Финансовые_обязательства[Октябрь]) -> 0.00 ₽ | N95: =SUBTOTAL(109,Финансовые_обязательства[Ноябрь]) -> 0.00 ₽ | O95: =SUBTOTAL(109,Финансовые_обязательства[Декабрь]) -> 0.00 ₽ | P95: =SUBTOTAL(109,Финансовые_обязательства[Год]) -> 502.00 ₽
A97: Введите сведения в таблице «Разные расходы», начиная с ячейки C97. Дальнейшие инструкции указаны в ячейке A105. | C97: РАЗНЫЕ ПЛАТЕЖИ | D97: Январь | E97: Февраль | F97: Март | G97: Апрель | H97: Май | I97: Июнь | J97: Июль | K97: Август | L97: Сентябрь | M97: Октябрь | N97: Ноябрь | O97: Декабрь | P97: Год | Q97: Спарклайн
C98: Другое | P98: =SUM(Прочее[[#This Row],[Январь]:[Декабрь]]) -> 0.00 ₽
C99: Другое | P99: =SUM(Прочее[[#This Row],[Январь]:[Декабрь]]) -> 0.00 ₽
C100: Другое | P100: =SUM(Прочее[[#This Row],[Январь]:[Декабрь]]) -> 0.00 ₽
C101: Другое | P101: =SUM(Прочее[[#This Row],[Январь]:[Декабрь]]) -> 0.00 ₽
C102: Другое | P102: =SUM(Прочее[[#This Row],[Январь]:[Декабрь]]) -> 0.00 ₽
C103: Итог | D103: =SUBTOTAL(109,Прочее[Январь]) -> 0.00 ₽ | E103: =SUBTOTAL(109,Прочее[Февраль]) -> 0.00 ₽ | F103: =SUBTOTAL(109,Прочее[Март]) -> 0.00 ₽ | G103: =SUBTOTAL(109,Прочее[Апрель]) -> 0.00 ₽ | H103: =SUBTOTAL(109,Прочее[Май]) -> 0.00 ₽ | I103: =SUBTOTAL(109,Прочее[Июнь]) -> 0.00 ₽ | J103: =SUBTOTAL(109,Прочее[Июль]) -> 0.00 ₽ | K103: =SUBTOTAL(109,Прочее[Август]) -> 0.00 ₽ | L103: =SUBTOTAL(109,Прочее[Сентябрь]) -> 0.00 ₽ | M103: =SUBTOTAL(109,Прочее[Октябрь]) -> 0.00 ₽ | N103: =SUBTOTAL(109,Прочее[Ноябрь]) -> 0.00 ₽ | O103: =SUBTOTAL(109,Прочее[Декабрь]) -> 0.00 ₽ | P103: =SUBTOTAL(109,Прочее[Год]) -> 0.00 ₽
A105: Итоговые значения автоматически рассчитываются в таблице, начиная с ячейки С105. Общие расходы, а также дефицит и избыток денежных средств автоматически вычисляются для каждого месяца и всего года. Спарклайны также обновляются автоматически. | C105: ИТОГОВЫЕ | D105: ЯНВ | E105: ФЕВ | F105: МАР | G105: АПР | H105: МАЙ | I105: ИЮН | J105: ИЮЛ | K105: АВГ | L105: СЕН | M105: ОКТ | N105: НОЯ | O105: ДЕК | P105: ГОД | Q105: СПАРКЛАЙН
C106: Общие расходы | D106: =SUM(Прочее[[#Totals],[Январь]],Финансовые_обязательства[[#Totals],[Январь]],Личные_расходы[[#Totals],[Январь]],Платежи_и_подписки[[#Totals],[Январь]],Отдых[[#Totals],[Январь]],Отпуск[[#Totals],[Январь]],Здоровье[[#Totals],[Январь]],Развлечения[[#Totals],[Январь]],Транспорт[[#Totals],[Январь]],Ежедневные[[#Totals],[Январь]],Домашние_расходы[[#Totals],[Январь]]) -> 2,687.00 ₽ | E106: =SUM(Прочее[[#Totals],[Февраль]],Финансовые_обязательства[[#Totals],[Февраль]],Личные_расходы[[#Totals],[Февраль]],Платежи_и_подписки[[#Totals],[Февраль]],Отдых[[#Totals],[Февраль]],Отпуск[[#Totals],[Февраль]],Здоровье[[#Totals],[Февраль]],Развлечения[[#Totals],[Февраль]],Транспорт[[#Totals],[Февраль]],Ежедневные[[#Totals],[Февраль]],Домашние_расходы[[#Totals],[Февраль]]) -> 3,429.00 ₽ | F106: =SUM(Прочее[[#Totals],[Март]],Финансовые_обязательства[[#Totals],[Март]],Личные_расходы[[#Totals],[Март]],Платежи_и_подписки[[#Totals],[Март]],Отдых[[#Totals],[Март]],Отпуск[[#Totals],[Март]],Здоровье[[#Totals],[Март]],Развлечения[[#Totals],[Март]],Транспорт[[#Totals],[Март]],Ежедневные[[#Totals],[Март]],Домашние_расходы[[#Totals],[Март]]) -> 2,718.00 ₽ | G106: =SUM(Прочее[[#Totals],[Апрель]],Финансовые_обязательства[[#Totals],[Апрель]],Личные_расходы[[#Totals],[Апрель]],Платежи_и_подписки[[#Totals],[Апрель]],Отдых[[#Totals],[Апрель]],Отпуск[[#Totals],[Апрель]],Здоровье[[#Totals],[Апрель]],Развлечения[[#Totals],[Апрель]],Транспорт[[#Totals],[Апрель]],Ежедневные[[#Totals],[Апрель]],Домашние_расходы[[#Totals],[Апрель]]) -> 0.00 ₽ | H106: =SUM(Прочее[[#Totals],[Май]],Финансовые_обязательства[[#Totals],[Май]],Личные_расходы[[#Totals],[Май]],Платежи_и_подписки[[#Totals],[Май]],Отдых[[#Totals],[Май]],Отпуск[[#Totals],[Май]],Здоровье[[#Totals],[Май]],Развлечения[[#Totals],[Май]],Транспорт[[#Totals],[Май]],Ежедневные[[#Totals],[Май]],Домашние_расходы[[#Totals],[Май]]) -> 0.00 ₽ | I106: =SUM(Прочее[[#Totals],[Июнь]],Финансовые_обязательства[[#Totals],[Июнь]],Личные_расходы[[#Totals],[Июнь]],Платежи_и_подписки[[#Totals],[Июнь]],Отдых[[#Totals],[Июнь]],Отпуск[[#Totals],[Июнь]],Здоровье[[#Totals],[Июнь]],Развлечения[[#Totals],[Июнь]],Транспорт[[#Totals],[Июнь]],Ежедневные[[#Totals],[Июнь]],Домашние_расходы[[#Totals],[Июнь]]) -> 0.00 ₽ | J106: =SUM(Прочее[[#Totals],[Июль]],Финансовые_обязательства[[#Totals],[Июль]],Личные_расходы[[#Totals],[Июль]],Платежи_и_подписки[[#Totals],[Июль]],Отдых[[#Totals],[Июль]],Отпуск[[#Totals],[Июль]],Здоровье[[#Totals],[Июль]],Развлечения[[#Totals],[Июль]],Транспорт[[#Totals],[Июль]],Ежедневные[[#Totals],[Июль]],Домашние_расходы[[#Totals],[Июль]]) -> 0.00 ₽ | K106: =SUM(Прочее[[#Totals],[Август]],Финансовые_обязательства[[#Totals],[Август]],Личные_расходы[[#Totals],[Август]],Платежи_и_подписки[[#Totals],[Август]],Отдых[[#Totals],[Август]],Отпуск[[#Totals],[Август]],Здоровье[[#Totals],[Август]],Развлечения[[#Totals],[Август]],Транспорт[[#Totals],[Август]],Ежедневные[[#Totals],[Август]],Домашние_расходы[[#Totals],[Август]]) -> 0.00 ₽ | L106: =SUM(Прочее[[#Totals],[Сентябрь]],Финансовые_обязательства[[#Totals],[Сентябрь]],Личные_расходы[[#Totals],[Сентябрь]],Платежи_и_подписки[[#Totals],[Сентябрь]],Отдых[[#Totals],[Сентябрь]],Отпуск[[#Totals],[Сентябрь]],Здоровье[[#Totals],[Сентябрь]],Развлечения[[#Totals],[Сентябрь]],Транспорт[[#Totals],[Сентябрь]],Ежедневные[[#Totals],[Сентябрь]],Домашние_расходы[[#Totals],[Сентябрь]]) -> 0.00 ₽ | M106: =SUM(Прочее[[#Totals],[Октябрь]],Финансовые_обязательства[[#Totals],[Октябрь]],Личные_расходы[[#Totals],[Октябрь]],Платежи_и_подписки[[#Totals],[Октябрь]],Отдых[[#Totals],[Октябрь]],Отпуск[[#Totals],[Октябрь]],Здоровье[[#Totals],[Октябрь]],Развлечения[[#Totals],[Октябрь]],Транспорт[[#Totals],[Октябрь]],Ежедневные[[#Totals],[Октябрь]],Домашние_расходы[[#Totals],[Октябрь]]) -> 0.00 ₽ | N106: =SUM(Прочее[[#Totals],[Ноябрь]],Финансовые_обязательства[[#Totals],[Ноябрь]],Личные_расходы[[#Totals],[Ноябрь]],Платежи_и_подписки[[#Totals],[Ноябрь]],Отдых[[#Totals],[Ноябрь]],Отпуск[[#Totals],[Ноябрь]],Здоровье[[#Totals],[Ноябрь]],Развлечения[[#Totals],[Ноябрь]],Транспорт[[#Totals],[Ноябрь]],Ежедневные[[#Totals],[Ноябрь]],Домашние_расходы[[#Totals],[Ноябрь]]) -> 0.00 ₽ | O106: =SUM(Прочее[[#Totals],[Декабрь]],Финансовые_обязательства[[#Totals],[Декабрь]],Личные_расходы[[#Totals],[Декабрь]],Платежи_и_подписки[[#Totals],[Декабрь]],Отдых[[#Totals],[Декабрь]],Отпуск[[#Totals],[Декабрь]],Здоровье[[#Totals],[Декабрь]],Развлечения[[#Totals],[Декабрь]],Транспорт[[#Totals],[Декабрь]],Ежедневные[[#Totals],[Декабрь]],Домашние_расходы[[#Totals],[Декабрь]]) -> 0.00 ₽ | P106: =SUM(Прочее[[#Totals],[Год]],Финансовые_обязательства[[#Totals],[Год]],Личные_расходы[[#Totals],[Год]],Платежи_и_подписки[[#Totals],[Год]],Отдых[[#Totals],[Год]],Отпуск[[#Totals],[Год]],Здоровье[[#Totals],[Год]],Развлечения[[#Totals],[Год]],Транспорт[[#Totals],[Год]],Ежедневные[[#Totals],[Год]],Домашние_расходы[[#Totals],[Год]]) -> 8,834.00 ₽
C107: Нехватка/остаток наличных | D107: =Доходы[[#Totals],[Январь]]-D106 -> 1,036.00 ₽ | E107: =Доходы[[#Totals],[Февраль]]-E106 -> 127.00 ₽ | F107: =Доходы[[#Totals],[Март]]-F106 -> 926.00 ₽ | G107: =Доходы[[#Totals],[Апрель]]-G106 -> 0.00 ₽ | H107: =Доходы[[#Totals],[Май]]-H106 -> 0.00 ₽ | I107: =Доходы[[#Totals],[Июнь]]-I106 -> 0.00 ₽ | J107: =Доходы[[#Totals],[Июль]]-J106 -> 0.00 ₽ | K107: =Доходы[[#Totals],[Август]]-K106 -> 0.00 ₽ | L107: =Доходы[[#Totals],[Сентябрь]]-L106 -> 0.00 ₽ | M107: =Доходы[[#Totals],[Октябрь]]-M106 -> 0.00 ₽ | N107: =Доходы[[#Totals],[Ноябрь]]-N106 -> 0.00 ₽ | O107: =Доходы[[#Totals],[Декабрь]]-O106 -> 0.00 ₽ | P107: =Доходы[[#Totals],[Год]]-P106 -> 2,089.00 ₽
